[Event "4NCL Div 2 2024-25"]
[Site "England"]
[Date "2025.02.16"]
[Round "6.31"]
[White "Tart, Peter K"]
[Black "Starley, Robert"]
[Result "0-1"]
[Annotator "TA"]
[ECO "B01"]
[WhiteElo "1903"]
[BlackElo "2036"]
[PlyCount "56"]
[EventDate "2024.11.23"]
[EventType "team-tourn"]
[EventCountry "ENG"]
[SourceTitle "playchess.com"]
[Source "ChessBase"]
[SourceQuality "1"]
[TimeControl "40/6000+30:3000+30"]

{[%evp 9,56,-8,0,-39,-33,-27,-4,-32,-35,-27,-39,-32,0,0,-10,9,47,0,0,-116,-132,-121,-113,-183,-191,-182,-181,-196,-189,-185,-187,-186,-197,-192,-187,-194,-199,-210,-202,-317,-349,-359,-328,-460,-454,-504,-504,-506,-492]} 1. e4 {[%emt 0:10:02]} d5 {[%emt 0:10:05]} 2. exd5 {[%emt 0:00:14]} Qxd5 {[%emt 0:00:05]} 3. Nc3 {[%emt 0:00:17]} Qa5 {[%emt 0:00:04]} 4. b4 {[%emt 0:00:06]} Qxb4 {[%emt 0:00:20]} 5. Rb1 {[%emt 0:00:15]} Qd6 {[%emt 0:00:54]} 6. Bc4 {[%emt 0:02:57] B01: Scandinavian Defence.} Nf6 {[%emt 0:00:58]} 7. Nf3 {[%emt 0:01:44]} e6 {[%emt 0:00:59]} 8. d4 {[%emt 0:03:18] The position is equal.} Be7 {[%emt 0:00:58]} 9. O-O {[%emt 0:04:51] White sacrificed a pawn} O-O {[%emt 0:00:47]} 10. Qe2 {[%emt 0:09:13]} a6 {[%emt 0:03:03]} 11. Ne4 $146 {[%emt 0:03:27]} ({Predecessor:} 11. Rd1 b5 12. Bd3 Bb7 13. Ng5 Nbd7 14. Rb3 c5 15. dxc5 Qc6 16. Nce4 h6 17. Nxf6+ Nxf6 {0-1 Molano Lafuente,I (2025)-Munoz Pantoja,M (2435) Canovelles op 2021 (6)}) 11... Nxe4 {[%emt 0:02:02]} 12. Qxe4 {[%emt 0:00:05]} Qd8 {[%emt 0:01:48]} 13. Ne5 {[%emt 0:07:26]} (13. Re1 $14 {might be stronger.}) 13... Nd7 $11 {[%emt 0:07:58]} 14. Nxf7 {[%emt 0:03:53]} Rxf7 $17 {[%emt 0:00:29]} 15. Qxe6 {[%emt 0:02:09]} Qf8 {[%emt 0:01:03][%cal Ob7b5]} 16. Re1 {[%emt 0:00:21]} (16. Qe3 $17) 16... Nb6 $19 {[%emt 0:03:08]} 17. Qxf7+ {[%emt 0:03:36]} Qxf7 {[%emt 0:00:10]} 18. Bxf7+ {[%emt 0:00:06]} Kxf7 {[%emt 0:00:04]} 19. Rb3 {[%emt 0:03:58]} Bf6 {[%emt 0:01:55]} ({Not} 19... Be6 20. Rbe3 Bg5 21. Rxe6 $16) 20. Bf4 {[%emt 0:01:51]} Nd5 {[%emt 0:01:47]} (20... Bxd4 21. Bxc7 Nd7 22. Bd6 $15) 21. Be5 {[%emt 0:00:18]} b5 {[%emt 0:01:48]} 22. Rf3 {[%emt 0:04:15]} Bg4 {[%emt 0:01:02]} 23. Rg3 {[%emt 0:01:13]} Be6 {[%emt 0:02:00]} 24. a4 {[%emt 0:08:30]} (24. h4 $142) 24... b4 {[%emt 0:01:59]} ({Much less strong is} 24... bxa4 25. h4 $19) 25. a5 {[%emt 0:03:22]} Rb8 {[%emt 0:02:07]} 26. f4 {[%emt 0:03:06]} (26. Bxf6 $142 gxf6 27. Rb3) 26... Rb5 {[%emt 0:01:07] Black is clearly winning.} 27. Ra1 {[%emt 0:12:47]} Bf5 {[%emt 0:00:58]} 28. Ra2 {[%emt 0:01:12]} Nc3 {[%emt 0:00:28] Weighted Error Value: White=0.35/Black=0.04 (flawless)   Mistake:       	White=5     	---        Inaccurate:     	White=1     	Black=2      OK:         	White=8     	Black=13     Best:        	---       	Black=1} 0-1

[Event "4NCL Div 2 2024-25"]
[Site "England"]
[Date "2025.02.16"]
[Round "6.32"]
[White "Alldritt, Nigel R E"]
[Black "Grimmett, Ashton"]
[Result "1-0"]
[Annotator "NA COMBH"]
[ECO "E62"]
[WhiteElo "1898"]
[BlackElo "1780"]
[PlyCount "145"]
[EventDate "2024.11.23"]
[EventType "team-tourn"]
[EventCountry "ENG"]
[SourceTitle "playchess.com"]
[Source "ChessBase"]
[SourceQuality "1"]
[TimeControl "40/6000+30:3000+30"]

1. d4 {[%emt 0:10:04]} Nf6 {[%emt 0:10:05]} 2. c4 {[%emt 0:00:06]} g6 {[%emt 0:00:03]} 3. g3 {[%emt 0:00:06]} c6 {[%emt 0:00:11]} 4. Nc3 {[%emt 0:01:31]} Bg7 {[%emt 0:00:07]} 5. e4 {[%emt 0:01:02]} d6 {[%emt 0:02:21]} 6. Bg2 {[%emt 0:01:21]} O-O {[%emt 0:01:38]} 7. Nf3 {[%emt 0:00:20]} Be6 {[%emt 0:05:20]} 8. Qe2 {[%emt 0:06:03]} a6 {[%emt 0:08:34]} 9. O-O {[%emt 0:03:35]} Qc8 {[%emt 0:00:27]} 10. Na4 {[%emt 0:18:21]} Bxc4 {[%emt 0:02:12]} 11. Qxc4 {[%emt 0:01:08]} b5 {[%emt 0:00:13]} 12. Qc2 {[%emt 0:00:13]} bxa4 {[%emt 0:00:05]} 13. Re1 {[%emt 0:05:11]} a3 {[%emt 0:02:15]} 14. b3 {[%emt 0:03:28]} c5 {[%emt 0:00:27]} 15. dxc5 {[%emt 0:11:50]} Nd5 {[%emt 0:23:52]} 16. e5 {[%emt 0:13:06]} Nb4 {[%emt 0:05:39]} 17. Qe4 {[%emt 0:01:55]} N8c6 {[%emt 0:00:35]} 18. Bxa3 {[%emt 0:05:45]} d5 {[%emt 0:00:58]} 19. Qe2 {[%emt 0:00:58]} e6 {[%emt 0:00:22]} 20. Bb2 {[%emt 0:03:08]} a5 {[%emt 0:00:33]} 21. a3 {[%emt 0:09:41]} Na6 {[%emt 0:00:09]} 22. Rac1 {[%emt 0:00:59]} Qb7 {[%emt 0:01:56]} 23. Qc2 {[%emt 0:00:49]} Rfb8 {[%emt 0:01:39]} 24. Nd2 {[%emt 0:07:44]} Bf8 {[%emt 0:00:58]} 25. Re3 {[%emt 0:00:10]} Ra7 {[%emt 0:05:31]} 26. Qd1 {[%emt 0:02:09]} Qc7 {[%emt 0:37:20]} 27. Qg4 {[%emt 0:00:29]} h5 {[%emt 0:00:00]} 28. Qd1 {[%emt 0:00:58]} Rb5 {[%emt 0:00:00]} 29. Bf1 {[%emt 0:01:00]} Rxc5 {[%emt 0:00:00]} 30. Bxa6 {[%emt 0:00:15]} Rxa6 {[%emt 0:00:00]} 31. Qe2 {[%emt 0:01:19]} Rxc1+ {[%emt 0:00:00]} 32. Bxc1 {[%emt 0:00:05]} Rb6 {[%emt 0:00:00]} 33. Bb2 {[%emt 0:00:07]} Bg7 {[%emt 0:00:00]} 34. f4 {[%emt 0:00:39]} Bf8 {[%emt 0:00:00]} 35. Kg2 {[%emt 0:00:09]} Ne7 {[%emt 0:00:00]} 36. Rc3 {[%emt 0:01:35]} Rc6 {[%emt 0:00:00]} 37. Qd3 {[%emt 0:00:15]} Nf5 {[%emt 0:00:00]} 38. Nf3 {[%emt 0:00:31]} Rxc3 {[%emt 0:00:00]} 39. Qxc3 {[%emt 0:00:18]} Qxc3 {[%emt 0:00:23]} 40. Bxc3 {[%emt 0:00:16]} a4 {[%emt 0:03:09]} 41. bxa4 {[%emt 0:22:36]} Bxa3 {[%emt 0:21:25]} 42. a5 {[%emt 0:04:54]} Bc5 {[%emt 0:00:07]} 43. a6 {[%emt 0:03:28]} Ne3+ {[%emt 0:01:56]} 44. Kh1 {[%emt 0:00:53]} Nf5 {[%emt 0:00:21]} 45. Ne1 {[%emt 0:02:26]} Ne7 {[%emt 0:04:06]} 46. Bb4 {[%emt 0:00:13]} Bxb4 {[%emt 0:02:26]} 47. a7 {[%emt 0:00:06]} Bxe1 {[%emt 0:00:05]} 48. a8=Q+ {[%emt 0:00:10]} Kg7 {[%emt 0:00:06]} 49. Qa1 {[%emt 0:07:48]} Bd2 {[%emt 0:01:03]} 50. Qd4 {[%emt 0:01:25]} Be1 {[%emt 0:00:25]} 51. Qe3 {[%emt 0:03:23]} Bb4 {[%emt 0:00:17]} 52. Qb3 {[%emt 0:02:20]} Bd2 {[%emt 0:00:29]} 53. Qd3 {[%emt 0:01:16]} Be1 {[%emt 0:00:25]} 54. h3 {[%emt 0:01:14]} h4 {[%emt 0:02:21]} 55. g4 {[%emt 0:02:26]} Bg3 {[%emt 0:00:21]} 56. Qa3 {[%emt 0:00:55]} Ng8 {[%emt 0:01:05]} 57. Qe3 {[%emt 0:00:22]} Ne7 {[%emt 0:01:07]} 58. Kg2 {[%emt 0:01:25]} Kg8 {[%emt 0:03:10]} 59. Qa3 {[%emt 0:00:26]} Bxf4 {[%emt 0:01:58]} 60. Qxe7 {[%emt 0:00:07]} Bxe5 {[%emt 0:00:08]} 61. Qxh4 {[%emt 0:00:06]} Kg7 {[%emt 0:00:32]} 62. Qe1 {[%emt 0:00:46]} Bf6 {[%emt 0:01:42]} 63. h4 {[%emt 0:00:44]} Be7 {[%emt 0:01:09]} 64. Qe5+ {[%emt 0:00:57]} Bf6 {[%emt 0:00:12]} 65. Qe1 {[%emt 0:00:16]} Be7 {[%emt 0:00:02]} 66. g5 {[%emt 0:00:07]} Kh7 {[%emt 0:02:33]} 67. Qe5 {[%emt 0:00:16]} Kg8 {[%emt 0:00:32]} 68. Kf3 {[%emt 0:00:06]} Kh7 {[%emt 0:00:05]} 69. Kg4 {[%emt 0:00:06]} Bd8 {[%emt 0:02:04]} 70. Qd6 {[%emt 0:00:28]} Ba5 {[%emt 0:01:07]} 71. Qf8 {[%emt 0:00:09]} Bc3 {[%emt 0:00:12]} 72. Qxf7+ {[%emt 0:00:10]} Bg7 {[%emt 0:00:05]} 73. h5 {[%emt 0:00:30]} 1-0